fUST/lending_fUST_20240128
["ID","MTS","AMOUNT","RATE_DAILY","PERIOD"]
[312884273,1706403044273,-3636.79892955,0.00023,2]
[312884274,1706403044283,-7426.34179188,0.0002979,3]
[312884279,1706403046495,-9966.32820812,0.0002979,3]
[312884280,1706403046505,-2186.15022849,0.00029923,2]
[312884281,1706403046514,-3193.00048478,0.00029992,4]
[312884282,1706403046527,-2380.78414491,0.00029992,4]
[312884402,1706403239104,1333.48001614,0.00031,17]
[312884405,1706403269718,5000.0,0.0001,2]
[312884406,1706403269747,15000.0,0.0001,2]
[312884407,1706403269775,5012.75836421,0.0001,2]
[312884417,1706403335080,155.01860223,0.0001,2]
[312884419,1706403351067,155.01860223,0.0001,2]
[312884420,1706403367081,155.01860223,0.0001,2]
[312884421,1706403387080,155.01860223,0.0001,2]
[312884422,1706403405087,219.25176057,0.0001,2]
[312884457,1706403727732,4160.67383051,0.0001,2]
[312884458,1706403727760,6059.78128289,0.0001,2]
[312884473,1706404037468,999.55,0.00031,17]
[312884519,1706404232606,-901.76903062,0.00021948,2]
[312884588,1706404238759,-297.32730767,0.00021948,2]
[312884589,1706404238769,-679.3029243,0.00021949,2]
[312884590,1706404238778,-155.02170304,0.0002195,2]
[312884591,1706404238788,-155.02170304,0.00021951,4]
[312884592,1706404238898,-1046.85514505,0.00021951,2]
[312884593,1706404238907,-1583.7528565,0.00021952,2]
[312884594,1706404238916,-2036.12411825,0.00022,2]
[312884595,1706404238924,-293.70793193,0.00022,4]
[312884596,1706404238933,-426.38170713,0.0002287,2]
[312884597,1706404238942,-169.199331,0.00022871,2]
[312884598,1706404238952,-166.666666,0.00022945,2]
[312884599,1706404238961,-3193.48812897,0.00022999,2]
[312884607,1706404242498,-430.49601044,0.00022999,2]
[312884729,1706405431865,-658.31347731,0.00020956,2]
[312884732,1706405431877,-541.07788458,0.00020956,2]
[312884734,1706405431886,-516.6293623,0.00020957,2]
[312884736,1706405431898,-162.673562,0.00020957,2]
[312884738,1706405431906,-155.02325349,0.00020958,4]
[312884740,1706405431916,-1583.7528565,0.00020958,2]
[312884742,1706405431925,-3485.08832391,0.00020962,2]
[312884744,1706405431934,-2075.77672297,0.0002139,2]
[312884746,1706405431943,-205.47568933,0.0002139,2]
[312884748,1706405431952,-155.23112393,0.0002139,2]
[312884750,1706405431961,-155.47795751,0.0002139,2]
[312884751,1706405431971,-155.15744208,0.0002139,2]
[312884752,1706405431980,-155.16518415,0.0002139,2]
[312884753,1706405431989,-155.26650608,0.0002139,2]
[312884754,1706405431999,-155.40968513,0.0002139,2]
[312884755,1706405432009,-155.59235085,0.0002139,2]
[312884756,1706405432020,-155.40843554,0.0002139,2]
[312884757,1706405432029,-523.34168566,0.00021391,2]
[312884758,1706405432038,-164.26813081,0.00021391,2]
[312884759,1706405432047,-24900.0,0.00021392,2]
[312884760,1706405432058,-168.9096163,0.00021507,2]
[312884761,1706405432070,-263.377675,0.00021671,2]
[312884762,1706405432080,-166.666666,0.00021918,2]
[312884763,1706405432089,-293.70793193,0.00022,4]
[312884764,1706405432099,-2036.12411825,0.00022,2]
[312884765,1706405432107,-3424.4444412,0.00022,2]
[312884778,1706405439074,-155.02325349,0.00020955,2]
[312884779,1706405439083,-155.34433718,0.0002139,2]
[312884780,1706405439094,-153.50068831,0.00021407,2]
[312884781,1706405439105,-547.53975405,0.00022,2]
[312884782,1706405439115,-426.38170713,0.00022,2]
[312884783,1706405439124,-168.803845,0.00022027,2]
[312884784,1706405439133,-166.666666,0.00022431,2]
[312884785,1706405439142,-166.666666,0.00022944,2]
[312884786,1706405439237,-155.02170304,0.00022999,2]
[312884787,1706405439249,-303.74433034,0.00022999,2]
[312884788,1706405439259,-155.3167164,0.00022999,2]
[312884789,1706405439269,-155.13202668,0.00022999,2]
[312884790,1706405439278,-155.2447508,0.00022999,2]
[312884791,1706405439288,-155.02325349,0.00022999,2]
[312884792,1706405439299,-1416.67721386,0.00023,2]
[312884793,1706405439309,-9947.92180076,0.00023,2]
[312884794,1706405439319,-166.666666,0.00023456,2]
[312884795,1706405439328,-166.666666,0.00023969,2]
[312884796,1706405439338,-4017.99473319,0.00024,2]
[312884797,1706405439347,-166.666666,0.00024482,2]
[312884798,1706405439356,-214.1529732,0.00024658,2]
[312884799,1706405439366,-499.00501624,0.0002496,5]
[312884800,1706405439375,-16052.87,0.0002499,3]
[312884801,1706405439384,-4727.98807036,0.00025,2]
[312884802,1706405439393,-7649.9786433,0.00025,2]
[312884803,1706405439403,-680.67452781,0.00025,2]
[312884804,1706405439412,-260.27250039,0.00025,2]
[312884805,1706405439421,-167.80993341,0.00025,2]
[312884806,1706405439431,-851.06760442,0.00025,2]
[312884807,1706405439440,-155.02325349,0.00025,2]
[312884808,1706405439449,-194.9590979,0.00025479,2]
[312884809,1706405439458,-175.13003996,0.00026984,2]
[312884810,1706405439467,-470.87385711,0.00026984,2]
[312884811,1706405439476,-15633.02905683,0.00026986,2]
[312884812,1706405439485,-290.6944281,0.00027,2]
[312884813,1706405439495,-598.269791,0.00027397,2]
[312884814,1706405439504,-1901.44944296,0.000275,2]
[312884815,1706405439513,-620.6670152,0.00027618,2]
[312884816,1706405439522,-13377.39,0.00027661,3]
[312884817,1706405439531,-153.0,0.00027671,2]
[312884818,1706405439540,-199.4415769,0.00027671,2]
[312884819,1706405439550,-153.0,0.00027671,2]
[312884820,1706405439559,-199.4415769,0.00027671,2]
[312884821,1706405439568,-199.4415769,0.00027671,2]
[312884822,1706405439578,-153.0,0.00027671,2]
[312884823,1706405439588,-398.8831538,0.00027671,2]
[312884824,1706405439597,-7696.33923264,0.00027855,2]
[312884825,1706405439607,-600.0,0.00028,2]
[312884826,1706405439616,-200.96358611,0.00028,2]
[312884827,1706405439626,-239.76670397,0.00028,2]
[312884828,1706405439635,-1500.0,0.00028,2]
[312884829,1706405439644,-199.4415769,0.00028156,2]
[312884830,1706405439654,-159.42971699,0.0002828,2]
[312884831,1706405439664,-306.0,0.00028356,2]
[312884832,1706405439673,-383.3948546,0.00028356,2]
[312884833,1706405439682,-153.0,0.00028356,2]
[312884834,1706405439691,-306.0,0.00028356,2]
[312884835,1706405439701,-199.4415769,0.00028356,2]
[312884836,1706405439710,-155.0,0.00028667,2]
[312884837,1706405439720,-61790.02721533,0.000288,2]
[312884838,1706405439729,-598.269791,0.00028919,2]
[312884839,1706405439738,-620.03335076,0.00028999,2]
[312884840,1706405439748,-458.3251857,0.00029,2]
[312884841,1706405439757,-1933.42796518,0.00029,2]
[312884842,1706405439766,-1000.0,0.00029,2]
[312884843,1706405439775,-310.03720446,0.00029,2]
[312884844,1706405439785,-9132.4701419,0.00029,4]
[312884845,1706405439794,-309.87175152,0.00029,2]
[312884846,1706405439803,-1500.0,0.00029,2]
[312884847,1706405439812,-200.0,0.000291,4]
[312884848,1706405439821,-886.13914723,0.00029116,2]
[312884849,1706405439830,-151.0,0.00029667,2]
[312884850,1706405439840,-151.0,0.00029667,2]
[312884852,1706405439849,-151.0,0.00029667,2]
[312884854,1706405439858,-151.0,0.00029667,2]
[312884856,1706405439867,-245.0,0.00029667,2]
[312884858,1706405439877,-166.92294,0.00029667,2]
[312884860,1706405439886,-166.92294,0.00029667,2]
[312884862,1706405439895,-151.0,0.00029667,2]
[312884863,1706405439904,-151.0,0.00029667,2]
[312884864,1706405439914,-151.0,0.00029667,2]
[312884865,1706405439922,-173014.92379653,0.00029667,2]
[312884866,1706405439931,-13817.01011621,0.0002969,2]
[312884867,1706405439940,-3320.55804067,0.00029714,2]
[312884868,1706405439949,-5000.0,0.00029714,5]
[312884869,1706405439958,-12464.38383288,0.00029714,2]
[312884870,1706405439967,-1523.97965369,0.00029728,2]
[312884871,1706405439976,-5000.0,0.00029728,5]
[312884872,1706405439985,-5000.0,0.00029728,5]
[312884873,1706405439994,-50000.0,0.00029739,3]
[312884874,1706405440003,-151.0,0.00029739,2]
[312884875,1706405440013,-500.0,0.00029739,2]
[312884876,1706405440026,-196.58601966,0.00029739,2]
[312884877,1706405440037,-500.0,0.00029739,2]
[312884878,1706405440046,-500.0,0.00029739,2]
[312884880,1706405440056,-500.0,0.00029739,2]
[312884882,1706405440065,-500.0,0.00029739,2]
[312884884,1706405440074,-500.0,0.00029739,2]
[312884885,1706405440083,-425.31454102,0.00029739,2]
[312884887,1706405440092,-500.0,0.00029739,2]
[312884888,1706405440102,-500.0,0.00029739,2]
[312884889,1706405440111,-500.0,0.00029739,2]
[312884890,1706405440121,-500.0,0.00029739,2]
[312884891,1706405440129,-500.0,0.00029739,2]
[312884892,1706405440138,-500.0,0.00029739,2]
[312884893,1706405440147,-500.0,0.00029739,2]
[312884894,1706405440158,-500.0,0.00029739,2]
[312884895,1706405440167,-500.0,0.00029739,2]
[312884896,1706405440176,-500.0,0.00029739,2]
[312884897,1706405440186,-500.0,0.00029739,2]
[312884898,1706405440195,-428.9090701,0.00029739,2]
[312884899,1706405440207,-500.0,0.00029739,2]
[312884900,1706405440216,-500.0,0.00029739,2]
[312884901,1706405440225,-327.51729766,0.00029739,2]
[312884902,1706405440235,-500.0,0.00029739,2]
[312884903,1706405440245,-500.0,0.00029739,2]
[312884904,1706405440255,-500.0,0.00029739,2]
[312884905,1706405440264,-500.0,0.00029739,2]
[312884906,1706405440273,-500.0,0.00029739,2]
[312884907,1706405440282,-500.0,0.00029739,2]
[312884908,1706405440291,-500.0,0.00029739,2]
[312884909,1706405440301,-500.0,0.00029739,2]
[312884910,1706405440311,-336.5554974,0.00029739,2]
[312884911,1706405440320,-500.0,0.00029739,2]
[312884912,1706405440331,-265.62441401,0.00029739,2]
[312884913,1706405440340,-500.0,0.00029739,2]
[312884914,1706405440350,-500.0,0.00029739,2]
[312884915,1706405440360,-500.0,0.00029739,2]
[312884916,1706405440370,-500.0,0.00029739,2]
[312884917,1706405440380,-500.0,0.00029739,2]
[312884918,1706405440390,-500.0,0.00029739,2]
[312884919,1706405440399,-500.0,0.00029739,2]
[312884920,1706405440409,-500.0,0.00029739,2]
[312884921,1706405440419,-500.0,0.00029739,2]
[312884922,1706405440428,-500.0,0.00029739,2]
[312884923,1706405440438,-500.0,0.00029739,2]
[312884924,1706405440448,-500.0,0.00029739,2]
[312884925,1706405440458,-500.0,0.00029739,2]
[312884926,1706405440467,-500.0,0.00029739,2]
[312884927,1706405440476,-500.0,0.00029739,2]
[312884928,1706405440486,-500.0,0.00029739,2]
[312884929,1706405440496,-649.86149145,0.00029739,2]
[312884930,1706405440505,-500.0,0.00029739,2]
[312884931,1706405440514,-500.0,0.00029739,2]
[312884932,1706405440523,-500.0,0.00029739,2]
[312884933,1706405440533,-500.0,0.00029739,2]
[312884934,1706405440543,-500.0,0.00029739,2]
[312884935,1706405440552,-500.0,0.00029739,2]
[312884936,1706405440562,-500.0,0.00029739,2]
[312884937,1706405440572,-500.0,0.00029739,2]
[312884938,1706405440581,-500.0,0.00029739,2]
[312884939,1706405440591,-500.0,0.00029739,2]
[312884940,1706405440601,-500.0,0.00029739,2]
[312884941,1706405440610,-500.0,0.00029739,2]
[312884942,1706405440619,-500.0,0.00029739,2]
[312884943,1706405440627,-500.0,0.00029739,2]
[312884944,1706405440636,-18134.01920408,0.0002974,4]
[312884945,1706405440645,-151.0,0.0002974,2]
[312884946,1706405440654,-151.0,0.0002974,2]
[312884947,1706405440663,-151.0,0.0002974,2]
[312884948,1706405440739,-151.0,0.0002974,2]
[312884949,1706405440748,-151.0,0.0002974,2]
[312884950,1706405440757,-166.92294,0.0002974,2]
[312884951,1706405440767,-166.92294,0.0002974,2]
[312884952,1706405440778,-151.0,0.0002974,2]
[312884953,1706405440788,-212.272603,0.0002974,2]
[312884954,1706405440797,-212.272603,0.0002974,2]
[312884955,1706405440806,-151.0,0.0002974,2]
[312884956,1706405440815,-151.0,0.0002974,2]
[312884957,1706405440824,-480.768117,0.0002974,2]
[312884958,1706405440833,-480.768117,0.0002974,2]
[312884959,1706405440843,-3539.968714,0.0002974,2]
[312884960,1706405440852,-3539.968714,0.0002974,2]
[312884961,1706405440861,-7697.556827,0.0002974,2]
[312884962,1706405440870,-7697.556827,0.0002974,2]
[312884963,1706405440879,-151.0,0.0002974,2]
[312884964,1706405440888,-151.0,0.0002974,2]
[312884965,1706405440897,-151.0,0.0002974,2]
[312884966,1706405440908,-3874.15746404,0.00029746,3]
[312884967,1706405440917,-3623.46839935,0.00029746,3]
[312884968,1706405440929,-5000.0,0.00029746,5]
[312884969,1706405440939,-5000.0,0.00029746,5]
[312884970,1706405440948,-151.0,0.00029746,2]
[312884971,1706405440959,-166.92294,0.00029746,2]
[312884972,1706405440968,-166.92294,0.00029746,2]
[312884973,1706405440976,-212.272603,0.00029746,2]
[312884974,1706405440985,-212.272603,0.00029746,2]
[312884975,1706405440996,-151.0,0.00029746,2]
[312884976,1706405441006,-480.768117,0.00029746,2]
[312884977,1706405441016,-480.768117,0.00029746,2]
[312884978,1706405441029,-3539.968714,0.00029746,2]
[312884979,1706405441039,-3539.968714,0.00029746,2]
[312884980,1706405441048,-7697.556827,0.00029746,2]
[312884981,1706405441058,-7697.556827,0.00029746,2]
[312884982,1706405441068,-151.0,0.00029746,2]
[312884983,1706405441077,-152.898058,0.00029746,2]
[312884984,1706405441087,-153.096833,0.00029746,2]
[312884985,1706405441098,-7697.556827,0.00029747,2]
[312884986,1706405441108,-7697.556827,0.00029747,2]
[312884987,1706405441118,-151.0,0.00029747,2]
[312884988,1706405441128,-151.0,0.00029748,2]
[312884989,1706405441139,-480.768117,0.00029748,2]
[312884990,1706405441149,-480.768117,0.00029748,2]
[312884991,1706405441158,-3539.968714,0.00029748,2]
[312884992,1706405441169,-3539.968714,0.00029748,2]
[312884993,1706405441179,-7697.556827,0.00029748,2]
[312884994,1706405441188,-1288.87369776,0.00029748,2]
[312884995,1706405441203,-6285.56788328,0.00029748,2]
[312885029,1706405443156,-4246.42421328,0.00029714,5]
[312885030,1706405443198,-753.57578672,0.00029714,5]
[312885031,1706405443209,-123.11524596,0.00029748,2]
[312885032,1706405443218,-151.0,0.00029748,2]
[312885033,1706405443227,-247.68682253,0.00029749,4]
[312885046,1706405504256,151.02114296,0.00028589,30]
[312885047,1706405504313,151.02114296,0.00028017,120]
[312885052,1706405788388,151.02114296,0.00028541,30]
[312885053,1706405788448,151.02114296,0.0002797,120]
[312885066,1706406285040,151.01963255,0.00028651,30]
[312885067,1706406285101,151.01963255,0.00028078,120]
[312885072,1706406563775,151.0226534,0.00028686,30]
[312885073,1706406563836,151.0226534,0.00028113,120]
[312885111,1706406632158,-155.02325349,0.0001835,2]
[312885113,1706406632167,-155.02325349,0.00018351,3]
[312885114,1706406632177,-318.096371,0.00018351,2]
[312885116,1706406632188,-135.18559682,0.00018351,2]
[312885118,1706406632198,-81268.82977941,0.00018351,2]
[312885120,1706406632208,-13554.9459243,0.00018352,2]
[312885167,1706406638148,-155.02325349,0.0001835,2]
[312885169,1706406638158,-2079.52535464,0.00018352,2]
[312885176,1706406638251,-155.02325349,0.00018352,2]
[312885177,1706406638260,-2336.58238756,0.00018352,2]
[312885178,1706406638272,-34663.42991797,0.00018352,2]
[312885179,1706406638282,-595.67298471,0.00018353,2]
[312885180,1706406638293,-11759.65388679,0.00018353,2]
[312885181,1706406638302,-995.42368119,0.00018354,2]
[312885182,1706406638312,-471.13604267,0.00018355,2]
[312885183,1706406638323,-1701.68458093,0.00018355,2]
[312885184,1706406638332,-11229.92594071,0.00018361,2]
[312885185,1706406638343,-24900.0,0.0001837,2]
[312885186,1706406638352,-1584.05603829,0.00019171,2]
[312885188,1706406638362,-917.77085514,0.00019172,2]
[312885189,1706406638372,-168.8038468,0.00019178,2]
[312885190,1706406638383,-169.067534,0.00019178,2]
[312885191,1706406638393,-169.523907,0.00019893,2]
[312885192,1706406638403,-2076.27654373,0.00019998,2]
[312885193,1706406638412,-155.02325349,0.0002,2]
[312885194,1706406638422,-39179.0,0.0002,2]
[312885195,1706406638431,-155.02325349,0.0002,2]
[312885196,1706406638440,-155.02325349,0.0002,2]
[312885197,1706406638451,-679.47851073,0.0002,2]
[312885198,1706406638460,-1199.39136189,0.0002,2]
[312885199,1706406638469,-155.02325349,0.0002,2]
[312885200,1706406638478,-13908.93319985,0.00021051,2]
[312885201,1706406638487,-500.0,0.00021917,2]
[312885202,1706406638497,-500.0,0.00021917,2]
[312885203,1706406638506,-500.0,0.00021917,2]
[312885204,1706406638515,-500.0,0.00021917,2]
[312885205,1706406638524,-500.0,0.00021917,2]
[312885206,1706406638534,-500.0,0.00021917,2]
[312885207,1706406638543,-624.72253014,0.00021917,2]
[312885208,1706406638552,-166.666666,0.00021918,2]
[312885209,1706406638562,-293.76675688,0.00022,4]
[312885210,1706406638571,-2036.5412467,0.00022,2]
[312885211,1706406638581,-3972.88161015,0.00022,2]
[312885212,1706406638590,-426.44750157,0.00022,2]
[312885213,1706406638600,-166.666666,0.00022431,2]
[312885214,1706406638609,-557.4339509,0.00022537,2]
[312885215,1706406638619,-161.13913263,0.00022897,2]
[312885216,1706406638628,-166.666666,0.00022944,2]
[312885217,1706406638637,-164.41820469,0.00022997,2]
[312885218,1706406638646,-328.43813781,0.00022997,2]
[312885219,1706406638656,-155.34433718,0.00022997,2]
[312885220,1706406638665,-245.58977518,0.00022997,2]
[312885221,1706406638675,-200.0,0.00022997,2]
[312885222,1706406638684,-169.04243065,0.00022997,2]
[312885223,1706406638693,-259.19142064,0.00022997,2]
[312885224,1706406638704,-155.52200796,0.00022997,2]
[312885225,1706406638713,-156.48321627,0.00022997,2]
[312885226,1706406638723,-3936.78097626,0.00022997,2]
[312885227,1706406638733,-309.95093829,0.00022997,2]
[312885228,1706406638743,-331.10236049,0.00022997,2]
[312885229,1706406638752,-165.38092522,0.00022997,2]
[312885230,1706406638762,-1582.28946502,0.00022997,2]
[312885231,1706406638772,-1272.98096576,0.00022997,2]
[312885232,1706406638782,-155.48459082,0.00022997,2]
[312885233,1706406638791,-524.46302518,0.00022997,2]
[312885234,1706406638802,-155.84991546,0.00022997,2]
[312885235,1706406638811,-628.17717001,0.00022997,2]
[312885236,1706406638821,-176.86265737,0.00022997,2]
[312885237,1706406638830,-167.57212832,0.00022997,2]
[312885238,1706406638841,-181.92157573,0.00022997,2]
[312885239,1706406638850,-521.62748703,0.00022997,2]
[312885240,1706406638860,-691.75747153,0.00022997,2]
[312885241,1706406638869,-206.43376055,0.00022997,2]
[312885242,1706406638879,-221.87170757,0.00022997,2]
[312885243,1706406638888,-289.31631416,0.00022997,2]
[312885244,1706406638898,-619.33057673,0.00022997,2]
[312885245,1706406638907,-2784.04255117,0.00022997,2]
[312885246,1706406638917,-500.0,0.00022997,2]
[312885247,1706406638932,-1299.03015508,0.00022997,2]
[312885248,1706406638948,-155.60546346,0.00022997,2]
[312885249,1706406638963,-4837.47410872,0.00022997,2]
[312885250,1706406638975,-155.3225529,0.00022998,2]
[312885251,1706406638990,-262.58292257,0.00022998,2]
[312885252,1706406639004,-5429.91226237,0.00022998,2]
[312885253,1706406639020,-75692.39402223,0.00022999,2]
[312885254,1706406639035,-168.82812377,0.00022999,2]
[312885255,1706406639046,-1417.01955965,0.00023,2]
[312885256,1706406639060,-9950.40162057,0.00023,2]
[312885257,1706406639074,-166.666666,0.00023456,2]
[312885258,1706406639088,-166.666666,0.00023969,2]
[312885259,1706406639102,-4031.43480066,0.00024,2]
[312885260,1706406639118,-166.666666,0.00024482,2]
[312885261,1706406639128,-380.0,0.00024658,2]
[312885262,1706406639143,-499.00501624,0.0002496,5]
[312885263,1706406639156,-1969.64177787,0.00025,2]
[312885264,1706406639170,-7652.00570539,0.00025,2]
[312885265,1706406639183,-4729.25513018,0.00025,2]
[312885266,1706406639196,-854.72020384,0.00025,2]
[312885267,1706406639211,-260.34510877,0.00025,2]
[312885268,1706406639225,-680.86891106,0.00025,2]
[312885269,1706406639240,-167.91138179,0.00025,2]
[312885270,1706406639254,-155.02325349,0.00025,2]
[312885271,1706406639265,-195.2877742,0.00025479,2]
[312885272,1706406639276,-151.0,0.00025841,2]
[312885273,1706406639289,-151.0,0.00026682,2]
[312885274,1706406639303,-290.78347578,0.00027,2]
[312885275,1706406639316,-883.52952189,0.0002728,2]
[312885276,1706406639328,-161.13913263,0.00027297,2]
[312885277,1706406639339,-500.0,0.00027396,2]
[312885278,1706406639350,-500.0,0.00027396,2]
[312885279,1706406639363,-500.0,0.00027396,2]
[312885280,1706406639375,-500.0,0.00027396,2]
[312885281,1706406639390,-196.58601966,0.00027396,2]
[312885282,1706406639402,-425.31454102,0.00027396,2]
[312885283,1706406639415,-500.0,0.00027396,2]
[312885284,1706406639427,-500.0,0.00027396,2]
[312885285,1706406639439,-500.0,0.00027396,2]
[312885286,1706406639452,-500.0,0.00027396,2]
[312885287,1706406639464,-500.0,0.00027396,2]
[312885288,1706406639476,-500.0,0.00027396,2]
[312885289,1706406639488,-500.0,0.00027396,2]
[312885290,1706406639500,-500.0,0.00027396,2]
[312885291,1706406639512,-500.0,0.00027396,2]
[312885292,1706406639524,-500.0,0.00027396,2]
[312885293,1706406639536,-500.0,0.00027396,2]
[312885294,1706406639548,-500.0,0.00027396,2]
[312885295,1706406639561,-500.0,0.00027396,2]
[312885296,1706406639573,-500.0,0.00027396,2]
[312885297,1706406639585,-384.87534231,0.00027396,2]
[312885298,1706406639597,-500.0,0.00027396,2]
[312885299,1706406639609,-500.0,0.00027396,2]
[312885300,1706406639621,-500.0,0.00027396,2]
[312885301,1706406639632,-227.51729766,0.00027396,2]
[312885302,1706406639645,-500.0,0.00027396,2]
[312885303,1706406639657,-500.0,0.00027396,2]
[312885304,1706406639669,-500.0,0.00027396,2]
[312885305,1706406639682,-500.0,0.00027396,2]
[312885306,1706406639694,-500.0,0.00027396,2]
[312885307,1706406639707,-500.0,0.00027396,2]
[312885308,1706406639719,-500.0,0.00027396,2]
[312885309,1706406639731,-500.0,0.00027396,2]
[312885310,1706406639743,-500.0,0.00027396,2]
[312885311,1706406639754,-500.0,0.00027396,2]
[312885312,1706406639766,-500.0,0.00027396,2]
[312885313,1706406639778,-500.0,0.00027396,2]
[312885314,1706406639790,-500.0,0.00027396,2]
[312885315,1706406639802,-608.69119175,0.00027396,2]
[312885316,1706406639919,-500.0,0.00027396,2]
[312885317,1706406639934,-500.0,0.00027396,2]
[312885318,1706406639943,-500.0,0.00027396,2]
[312885319,1706406639954,-500.0,0.00027396,2]
[312885320,1706406639963,-500.0,0.00027396,2]
[312885321,1706406639973,-500.0,0.00027396,2]
[312885322,1706406639982,-500.0,0.00027396,2]
[312885323,1706406639992,-500.0,0.00027396,2]
[312885324,1706406640001,-500.0,0.00027396,2]
[312885325,1706406640011,-500.0,0.00027396,2]
[312885326,1706406640022,-500.0,0.00027396,2]
[312885327,1706406640031,-500.0,0.00027396,2]
[312885328,1706406640041,-500.0,0.00027396,2]
[312885330,1706406640051,-606.61477475,0.00027396,2]
[312885332,1706406640060,-500.0,0.00027396,2]
[312885334,1706406640070,-500.0,0.00027396,2]
[312885335,1706406640079,-500.0,0.00027396,2]
[312885336,1706406640089,-500.0,0.00027396,2]
[312885337,1706406640099,-500.0,0.00027396,2]
[312885338,1706406640108,-500.0,0.00027396,2]
[312885339,1706406640118,-500.0,0.00027396,2]
[312885340,1706406640127,-500.0,0.00027396,2]
[312885341,1706406640137,-336.5554974,0.00027396,2]
[312885342,1706406640146,-500.0,0.00027396,2]
[312885343,1706406640156,-500.0,0.00027396,2]
[312885344,1706406640165,-500.0,0.00027396,2]
[312885345,1706406640174,-500.0,0.00027396,2]
[312885346,1706406640183,-500.0,0.00027396,2]
[312885347,1706406640193,-500.0,0.00027396,2]
[312885348,1706406640202,-500.0,0.00027396,2]
[312885349,1706406640212,-500.0,0.00027396,2]
[312885350,1706406640222,-586.91191757,0.00027396,2]
[312885351,1706406640231,-500.0,0.00027396,2]
[312885352,1706406640241,-500.0,0.00027396,2]
[312885353,1706406640250,-500.0,0.00027396,2]
[312885354,1706406640260,-500.0,0.00027396,2]
[312885355,1706406640269,-349.98461015,0.00027396,2]
[312885356,1706406640280,-500.0,0.00027396,2]
[312885357,1706406640289,-500.0,0.00027396,2]
[312885358,1706406640298,-600.0,0.00027396,2]
[312885359,1706406640308,-7707.014563,0.00027396,2]
[312885360,1706406640317,-7707.014563,0.00027396,2]
[312885361,1706406640327,-500.0,0.00027396,2]
[312885362,1706406640336,-500.0,0.00027396,2]
[312885363,1706406640346,-516.17413731,0.00027396,2]
[312885364,1706406640355,-500.0,0.00027396,2]
[312885365,1706406640366,-500.0,0.00027396,2]
[312885366,1706406640375,-375.64860661,0.00027396,2]
[312885367,1706406640386,-500.0,0.00027396,2]
[312885368,1706406640396,-500.0,0.00027396,2]
[312885369,1706406640406,-500.0,0.00027396,2]
[312885370,1706406640417,-500.0,0.00027396,2]
[312885371,1706406640426,-500.0,0.00027396,2]
[312885372,1706406640436,-500.0,0.00027396,2]
[312885373,1706406640445,-196.45677354,0.00027396,2]
[312885374,1706406640456,-552.55016778,0.00027396,2]
[312885375,1706406640466,-500.0,0.00027396,2]
[312885376,1706406640476,-500.0,0.00027396,2]
[312885377,1706406640486,-500.0,0.00027396,2]
[312885378,1706406640495,-500.0,0.00027396,2]
[312885379,1706406640504,-500.0,0.00027396,2]
[312885380,1706406640514,-500.0,0.00027396,2]
[312885381,1706406640523,-500.0,0.00027396,2]
[312885382,1706406640533,-500.0,0.00027396,2]
[312885383,1706406640543,-500.0,0.00027396,2]
[312885384,1706406640554,-500.0,0.00027396,2]
[312885385,1706406640563,-500.0,0.00027396,2]
[312885386,1706406640572,-500.0,0.00027396,2]
[312885387,1706406640582,-645.55215324,0.00027396,2]
[312885388,1706406640591,-500.0,0.00027396,2]
[312885389,1706406640600,-500.0,0.00027396,2]
[312885390,1706406640608,-500.0,0.00027396,2]
[312885391,1706406640619,-403.71190103,0.00027396,2]
[312885392,1706406640628,-500.0,0.00027396,2]